Workbook

Sheet GF
B2: GF… Griglie afoniche | L2: cod. | M2: 4-2.0-01.00-I-01/14
L3: ver. | M3: 1.0.0
B7: Materiale: | I7: =IF(mat=0,"Seleziona il materiale","") -> 
B9: Spessore: | I9: =IF(spess=0,"Seleziona la profondità","") -> 
B11: Rete:
B13: Flange:
B15: Q: | C15: 30500 | D15: [m3/h] | E15: portata d'aria | I15: =IF(portata="","Inserire la portata d'aria","") -> 
B17: =IF(base=arrB,"B: ","B (*): ") -> B: | C17: 1200 | D17: [mm] | E17: base nominale | I17: =IF(base="","Inserire un valore per la base",IF(base<>arrB,CONCATENATE("(*) Valore arrotondato a ",arrB," mm"),"")) -> 
B19: =IF(altezza=arrH,"H: ","H (**): ") -> H: | C19: 1600 | D19: [mm] | E19: altezza nominale | I19: =IF(altezza="","Inserire un valore per l'altezza",IF(altezza<>arrH,CONCATENATE("(*) Valore arrotondato a ",arrH," mm"),"")) -> 
B23: *Per conoscere il rumore residuo a valle della griglia immettere i valori di potenza sonora per le varie bande di frequenza della fonte di rumore: | F23: 63 | G23: 125 | H23: 250 | I23: 500 | J23: 1000 | K23: 2000 | L23: 4000 | M23: 8000 | N23: TOT
F24: 78.3 | G24: 61.6 | H24: 54.1 | I24: 48.3 | J24: 47.5 | K24: 38.2 | L24: 28.3 | M24: 21 | N24: =IF(ckA=FALSE,"",10*LOG(10^(F24/10)+10^(G24/10)+10^(H24/10)+10^(I24/10)+10^(J24/10)+10^(K24/10)+10^(L24/10)+10^(M24/10))) -> 78.41622397
I29: Voce di capitolato:
B30: S | C30: =IF(base="","",IF(altezza="","",(C17-40)*(C19-40)/F48/1000000)) -> 0.8339170507 | D30: [m2] | E30: superficie libera | I30: (cliccare sull'icona a lato per copiare il testo)
I31: =$F$75 -> Griglia di presa aria esterna o espulsione con protezione afonica per ridurre l'emissione sonora di impianti di ventilazione civile e industriale realizzata in acciaio Zn DN 1200 x 1600 x sp300 mm
B32: vK | C32: =IF(portata="","",IF(base="","",IF(altezza="","",C15/C30/3600))) -> 10.1595503 | D32: [m/s] | E32: velocità frontale
B34: Dp | C34: =IF(spess=0,"",IF(portata="","",IF(base="","",IF(altezza="","",F52*F50*(portata/(F48*C30*3600))^2)))) -> 67.63463145 | D34: [Pa] | E34: perdite di carico
B36: P | C36: =IF(arrB="","",IF(arrH="","",IF(spess=0,"",IF(mat=0,"",IF(mat=1,C85,IF(mat=2,C94,C103)))))) -> 73.8984 | D36: [kg] | E36: peso
B38: LWA | C38: =N44 -> 73.38280519 | D38: dB(A) | E38: Potenza sonora residua totale
F40: 63 | G40: 125 | H40: 250 | I40: 500 | J40: 1000 | K40: 2000 | L40: 4000 | M40: 8000 | N40: TOT
E41: Potenza sonora della fonte di rumore | F41: =IF($K$72=FALSE,"",IF(LW=2,F24,F24+C68)) -> 78.3 | G41: 61.6 | H41: 54.1 | I41: 48.3 | J41: 47.5 | K41: 38.2 | L41: 28.3 | M41: 21 | N41: =IF(ckA=FALSE,"",10*LOG(10^(F41/10)+10^(G41/10)+10^(H41/10)+10^(I41/10)+10^(J41/10)+10^(K41/10)+10^(L41/10)+10^(M41/10))) -> 78.41622397
E42: ponderata in scala A:
E43: Attenuazione della GF: | F43: =IF(spess=0,"",LOOKUP(spess,$K$63:$K$66,C63:C66)) -> 5 | G43: 6 | H43: 8 | I43: 11 | J43: 16 | K43: 18 | L43: 16 | M43: 15
E44: Potenza sonora residua: | F44: =IF(spess=0,"",IF(ckA=FALSE,"",IF(F41-F43>25,F41-F43,25))) -> 73.3 | G44: 55.6 | H44: 46.1 | I44: 37.3 | J44: 31.5 | K44: 25 | L44: 25 | M44: 25 | N44: =IF(spess=0,"",IF(ckA=FALSE,"",10*LOG(10^(F44/10)+10^(G44/10)+10^(H44/10)+10^(I44/10)+10^(J44/10)+10^(K44/10)+10^(L44/10)+10^(M44/10)))) -> 73.38280519
B46: Dati nascosti:
B48: materiale | C48: 1 | E48: k1 | F48: 2.17 | H48: spessore | I48: k4 | J48: prof | K48: kp1 | L48: kp2 | M48: kp3
H49: 1 | I49: 1 | J49: 200 | K49: 222.55 | L49: 224 | M49: 10180
B50: spessore | C50: 2 | E50: k3 | F50: 5.51 | H50: 2 | I50: 0.56 | J50: 300 | K50: 314 | L50: 314 | M50: 13740
H51: 3 | I51: 1.21 | J51: 400 | K51: 222.55 | L51: 224 | M51: 10180
B52: rete | C52: 2 | E52: k4 | F52: =IF(spess=0,0,LOOKUP(spess,$H$49:$H$52,$I$49:$I$52)) -> 0.56 | H52: 4 | I52: 0.83 | J52: 600 | K52: 314 | L52: 314 | M52: 13740
J53: =IF(spess=0,"",LOOKUP(spess,H49:H52,J49:J52)) -> 300
B54: flange | C54: 2 | E54: prof | F54: =IF(spess=0,0,LOOKUP(spess,$H$49:$H$52,$J$49:$J$52)) -> 300
B56: arrB | C56: =IF(base="","",IF((CEILING(base,25)-base)<=12.5,CEILING(base,25),FLOOR(base,25))) -> 1200 | E56: kp1 | F56: =IF(spess=0,0,LOOKUP(spess,$H$49:$H$52,$K$49:$K$52)) -> 314 | H56: prof_p | I56: =IF(spess=0,"",IF(spess=1,200,IF(spess=2,300,IF(spess=3,200,300)))) -> 300
B58: arrH | C58: =IF(altezza="","",IF((CEILING(altezza,25)-altezza)<=12.5,CEILING(altezza,25),FLOOR(altezza,25))) -> 1600 | E58: kp2 | F58: =IF(spess=0,0,LOOKUP(spess,$H$49:$H$52,$L$49:$L$52)) -> 314
B60: LW | C60: 2 | E60: kp3 | F60: =IF(spess=0,0,LOOKUP(spess,$H$49:$H$52,$M$49:$M$52)) -> 13740
B62: fm [Hz] | C62: 63 | D62: 125 | E62: 250 | F62: 500 | G62: 1000 | H62: 2000 | I62: 4000 | J62: 8000 | K62: indice
B63: GFZ2 | C63: 2 | D63: 4 | E63: 5 | F63: 9 | G63: 14 | H63: 16 | I63: 8 | J63: 8 | K63: 1
B64: GFZ3 | C64: 5 | D64: 6 | E64: 8 | F64: 11 | G64: 16 | H64: 18 | I64: 16 | J64: 15 | K64: 2
B65: GFZ4 | C65: 4 | D65: 8 | E65: 10 | F65: 15 | G65: 25 | H65: 28 | I65: 18 | J65: 16 | K65: 3
B66: GFZ6 | C66: 7 | D66: 9 | E66: 12 | F66: 17 | G66: 28 | H66: 33 | I66: 28 | J66: 27 | K66: 4
B68: A | C68: -26.2 | D68: -16.1 | E68: -8.6 | F68: -3.2 | G68: 0 | H68: 1.2 | I68: 1 | J68: -1.1
B70: controllo dati acustici:
B71: Hz | C71: 63 | D71: 125 | E71: 250 | F71: 500 | G71: 1000 | H71: 2000 | I71: 4000 | J71: 8000
B72: dati non nulli | C72: =IF(F24="",0,1) -> 1 | D72: =IF(G24="",0,1) -> 1 | E72: 1 | F72: 1 | G72: 1 | H72: 1 | I72: 1 | J72: 1 | K72: =AND(C72:J72) -> TRUE
B74: r acciaio Zn | C74: 7800 | D74: kg/mc | F74: Voce di capitolato
B75: r allum | C75: 2710 | D75: kg/mc | F75: =IF(AND(mat<>0,spess<>0,arrB<>"",arrH<>"")=FALSE,"",CONCATENATE(F77,F78,H78," DN ",arrB," x ",arrH," x sp",$J$53," mm",G86)) -> Griglia di presa aria esterna o espulsione con protezione afonica per ridurre l'emissione sonora di impianti di ventilazione civile e industriale realizzata in acciaio Zn DN 1200 x 1600 x sp300 mm
B76: r acciaio inox | C76: 7930 | D76: kg/mc
F77: Griglia di presa aria esterna o espulsione con protezione afonica per ridurre l'emissione sonora di impianti di ventilazione civile e industriale
B78: P telaio Zn | C78: =IF(arrB="","",IF(arrH="","",IF(spess=0,"",(((20*2+prof_p)*arrB*2+(20*2+prof_p)*arrH*2))/10^9*$C$74))) -> 14.8512 | D78: kg | F78: realizzata in | H78: =IF(mat=1,J78,IF(mat=2,J79,J80)) -> acciaio Zn | I78: 1 | J78: acciaio Zn
B79: P profili Zn | C79: =IF(arrB="","",IF(arrH="","",IF(spess=0,"",(10+50+50+$F$56+25+10)*arrB/10^9*$C$74*(FLOOR(arrH/150,1)-1)))) -> 38.66616 | D79: kg | I79: 2 | J79: alluminio
B80: P lamierino Zn | C80: =IF(arrB="","",IF(arrH="","",IF(spess=0,"",(16+25+$F$58)*arrB/10^9*$C$74))) -> 3.3228 | D80: kg | I80: 3 | J80: acciaio inox
B81: p lana | C81: =IF(arrB="","",IF(arrH="","",IF(spess=0,"",$F$60/10^9*arrB*40*(FLOOR(arrH/150,1)-1)))) -> 5.93568 | D81: kg
B82: P angolari Zn | C82: =IF(arrB="","",IF(arrH="","",IF(spess=0,"",(4*(23+23)*prof_p/10^9)*$C$74))) -> 0.43056 | D82: kg | F82: Opzioni:
B83: P lam micrstr Zn | C83: =IF(arrB="","",IF(arrH="","",IF(spess=0,"",(220*arrB)/10^9*4500*(FLOOR(arrH/150,1)-1)))) -> 10.692 | D83: kg | F83: 1 | G83: =IF(OR(C52=1,C54=1)=TRUE," completa di ","") -> 
B84: molt | C84: =IF(spess=0,"",IF(spess=1,1,IF(spess=2,1,IF(spess=3,2,2)))) -> 1 | F84: 2 | G84: =IF(C52=1,G87,"") -> 
B85: p Zn | C85: =IF(arrB="","",IF(arrH="","",IF(spess=0,"",SUM(C78:C83)*C84))) -> 73.8984 | D85: kg | F85: 3 | G85: =IF(AND(C52=1,C54=1)=TRUE,CONCATENATE("e ",G88),G88) -> 
F86: 1+2+3 | G86: =CONCATENATE(G83,G84,G85) -> 
B87: P telaio Al | C87: =IF(arrB="","",IF(arrH="","",IF(spess=0,"",(((20*2+prof_p)*arrB*2+(20*2+prof_p)*arrH*2))/10^9*$C$75))) -> 5.15984 | D87: kg | F87: rete: | G87: =IF($C$52=1,"rete elettrosaldata antivolatile in acciaio Zn a maglia 10x10 mm ","") -> 
B88: P profili Al | C88: =IF(arrB="","",IF(arrH="","",IF(spess=0,"",(10+50+50+$F$56+25+10)*arrB/10^9*$C$75*(FLOOR(arrH/150,1)-1)))) -> 13.434012 | D88: kg | F88: cornice: | G88: =IF($C$54=1,CONCATENATE("cornice perimetrale da 30 mm in ",H78),"") -> 
B89: P lamierino Al | C89: =IF(arrB="","",IF(arrH="","",IF(spess=0,"",(16+25+$F$58)*arrB/10^9*$C$75))) -> 1.15446 | D89: kg
B90: p lana | C90: =IF(arrB="","",IF(arrH="","",IF(spess=0,"",$F$60/10^9*arrB*40*(FLOOR(arrH/150,1)-1)))) -> 5.93568 | D90: kg
B91: P angolari Al | C91: =IF(arrB="","",IF(arrH="","",IF(spess=0,"",(4*(23+23)*prof_p/10^9)*$C$75))) -> 0.149592 | D91: kg
B92: P lam micrstr Al | C92: =IF(arrB="","",IF(arrH="","",IF(spess=0,"",(220*arrB)/10^9*4500*(FLOOR(arrH/150,1)-1)))) -> 10.692 | D92: kg
B93: molt | C93: =IF(spess=0,"",IF(spess=1,1,IF(spess=2,1,IF(spess=3,2,2)))) -> 1
B94: p Al | C94: =IF(arrB="","",IF(arrH="","",IF(spess=0,"",SUM(C87:C92)*C93))) -> 36.525584 | D94: kg
B96: P telaio inox | C96: =IF(arrB="","",IF(arrH="","",IF(spess=0,"",(((20*2+prof_p)*arrB*2+(20*2+prof_p)*arrH*2))/10^9*$C$76))) -> 15.09872 | D96: kg
B97: P profili inox | C97: =IF(arrB="","",IF(arrH="","",IF(spess=0,"",(10+50+50+$F$56+25+10)*arrB/10^9*$C$76*(FLOOR(arrH/150,1)-1)))) -> 39.310596 | D97: kg
B98: P lamierino inox | C98: =IF(arrB="","",IF(arrH="","",IF(spess=0,"",(16+25+$F$58)*arrB/10^9*$C$76))) -> 3.37818 | D98: kg
B99: p lana | C99: =IF(arrB="","",IF(arrH="","",IF(spess=0,"",$F$60/10^9*arrB*40*(FLOOR(arrH/150,1)-1)))) -> 5.93568 | D99: kg
B100: P angolari inox | C100: =IF(arrB="","",IF(arrH="","",IF(spess=0,"",(4*(23+23)*prof_p/10^9)*$C$76))) -> 0.437736 | D100: kg
B101: P lam micrstr inox | C101: =IF(arrB="","",IF(arrH="","",IF(spess=0,"",(220*arrB)/10^9*4500*(FLOOR(arrH/150,1)-1)))) -> 10.692 | D101: kg
B102: molt | C102: =IF(spess=0,"",IF(spess=1,1,IF(spess=2,1,IF(spess=3,2,2)))) -> 1
B103: p inox | C103: =IF(arrB="","",IF(arrH="","",IF(spess=0,"",SUM(C96:C101)*C102))) -> 74.852912 | D103: kg
